[Event "Titled Tuesday Blitz March 28 Early 2023"]
[White "Goudriaan, Etienne"]
[Black "Drozdowski, Kacper"]
[WhiteFideId "1021150"]
[BlackFideId "1136720"]
[WhiteElo "2318"]
[BlackElo "2497"]
[Result "1-0"]
[Round "02"]
[TimeControl "180+2"]
[Date "2023.03.28"]
[WhiteClock "0:00:41"]
[BlackClock "0:01:16"]

1. d4 {[%clk 0:03:00]}  Nf6 {[%clk 0:02:59]} 2. c4 {[%clk 0:02:59]}  g6 {[%clk 0:02:59]} 3. Nc3 {[%clk 0:02:55]}  d5 {[%clk 0:03:00]} 4. cxd5 {[%clk 0:02:54]}  Nxd5 {[%clk 0:03:00]} 5. Bd2 {[%clk 0:02:55]}  Bg7 {[%clk 0:03:00]} 6. e4 {[%clk 0:02:53]}  Nxc3 {[%clk 0:02:59]} 7. Bxc3 {[%clk 0:02:52]}  O-O {[%clk 0:03:00]} 8. Nf3 {[%clk 0:02:47]}  b6 {[%clk 0:03:00]} 9. Bd3 {[%clk 0:02:40]}  Bb7 {[%clk 0:03:00]} 10. O-O {[%clk 0:02:40]}  Nd7 {[%clk 0:02:59]} 11. Re1 {[%clk 0:02:21]}  e6 {[%clk 0:02:58]} 12. Bc4 {[%clk 0:02:04]}  c5 {[%clk 0:02:55]} 13. d5 {[%clk 0:02:04]}  exd5 {[%clk 0:02:52]} 14. Bxg7 {[%clk 0:01:56]}  Kxg7 {[%clk 0:02:51]} 15. Bxd5 {[%clk 0:01:56]}  Bxd5 {[%clk 0:02:50]} 16. Qxd5 {[%clk 0:01:48]}  Qe7 {[%clk 0:02:41]} 17. e5 {[%clk 0:01:24]}  Rad8 {[%clk 0:02:21]} 18. Qb7 {[%clk 0:01:24]}  Rfe8 {[%clk 0:02:14]} 19. Qxa7 {[%clk 0:01:20]}  Qe6 {[%clk 0:02:12]} 20. Qc7 {[%clk 0:01:17]}  Rc8 {[%clk 0:02:07]} 21. Qd6 {[%clk 0:01:17]}  Qxd6 {[%clk 0:02:06]} 22. exd6 {[%clk 0:01:18]}  Rxe1+ {[%clk 0:02:06]} 23. Rxe1 {[%clk 0:01:18]}  Rc6 {[%clk 0:02:07]} 24. Rd1 {[%clk 0:01:14]}  Kf6 {[%clk 0:02:07]} 25. a4 {[%clk 0:01:03]}  h6 {[%clk 0:02:06]} 26. Nd2 {[%clk 0:01:03]}  Ke6 {[%clk 0:01:50]} 27. Nc4 {[%clk 0:01:01]}  Rc8 {[%clk 0:01:43]} 28. b3 {[%clk 0:00:54]}  f6 {[%clk 0:01:38]} 29. Re1+ {[%clk 0:00:53]}  Kd5 {[%clk 0:01:29]} 30. Re7 {[%clk 0:00:53]}  b5 {[%clk 0:01:20]} 31. axb5 {[%clk 0:00:47]}  Ra8 {[%clk 0:01:20]} 32. g3 {[%clk 0:00:44]}  Ra1+ {[%clk 0:01:19]} 33. Kg2 {[%clk 0:00:44]}  Nf8 {[%clk 0:01:16]} 34. d7 {[%clk 0:00:43]}  Nxd7 {[%clk 0:01:14]} 35. Rxd7+ {[%clk 0:00:44]}  Ke6 {[%clk 0:01:14]} 36. Rd6+ {[%clk 0:00:43]}  Ke7 {[%clk 0:01:15]} 37. b6 {[%clk 0:00:40]}  Rb1 {[%clk 0:01:15]} 38. b7 {[%clk 0:00:40]}  Rxb3 {[%clk 0:01:16]} 39. Rb6 {[%clk 0:00:41]} 1-0


[Site "https://www.chess.com"]

[Event "Titled Tuesday Blitz March 28 Early 2023"]
[White "Terry, Renato"]
[Black "Seemann, Jakub"]
[WhiteFideId "3803457"]
[BlackFideId "21874697"]
[WhiteElo "2579"]
[BlackElo "2364"]
[Result "1-0"]
[Round "02"]
[TimeControl "180+2"]
[Date "2023.03.28"]
[WhiteClock "0:01:23"]
[BlackClock "0:00:01"]

1. e4 {[%clk 0:02:56]}  c6 {[%clk 0:02:53]} 2. Nf3 {[%clk 0:02:55]}  d5 {[%clk 0:02:54]} 3. exd5 {[%clk 0:02:55]}  cxd5 {[%clk 0:02:54]} 4. Ne5 {[%clk 0:02:55]}  Nc6 {[%clk 0:02:51]} 5. d4 {[%clk 0:02:56]}  Nf6 {[%clk 0:02:49]} 6. c3 {[%clk 0:02:56]}  e6 {[%clk 0:02:46]} 7. Bd3 {[%clk 0:02:53]}  Bd6 {[%clk 0:02:46]} 8. f4 {[%clk 0:02:53]}  Ne4 {[%clk 0:02:39]} 9. Qf3 {[%clk 0:02:52]}  O-O {[%clk 0:02:18]} 10. Bxe4 {[%clk 0:02:49]}  dxe4 {[%clk 0:02:19]} 11. Qxe4 {[%clk 0:02:50]}  f6 {[%clk 0:02:18]} 12. Nxc6 {[%clk 0:02:45]}  bxc6 {[%clk 0:02:19]} 13. O-O {[%clk 0:02:42]}  Rb8 {[%clk 0:02:20]} 14. b4 {[%clk 0:02:36]}  Ba6 {[%clk 0:01:58]} 15. Rd1 {[%clk 0:02:22]}  Qe7 {[%clk 0:01:44]} 16. Be3 {[%clk 0:01:59]}  e5 {[%clk 0:01:16]} 17. dxe5 {[%clk 0:01:49]}  fxe5 {[%clk 0:01:15]} 18. f5 {[%clk 0:01:50]}  Bb7 {[%clk 0:01:02]} 19. Na3 {[%clk 0:01:43]}  c5 {[%clk 0:00:33]} 20. Qc4+ {[%clk 0:01:43]}  Kh8 {[%clk 0:00:33]} 21. bxc5 {[%clk 0:01:44]}  Bc7 {[%clk 0:00:26]} 22. c6 {[%clk 0:01:42]}  Bc8 {[%clk 0:00:13]} 23. Nb5 {[%clk 0:01:37]}  Rxb5 {[%clk 0:00:03]} 24. Qxb5 {[%clk 0:01:37]}  Rxf5 {[%clk 0:00:02]} 25. Qc5 {[%clk 0:01:29]}  Qe8 {[%clk 0:00:02]} 26. Qxa7 {[%clk 0:01:29]}  Qe7 {[%clk 0:00:01]} 27. Rd7 {[%clk 0:01:23]}  Bxd7 {[%clk 0:00:01]} 28. Qxc7 {[%clk 0:01:23]} 1-0


[Site "https://www.chess.com"]

[Event "Titled Tuesday Blitz March 28 Early 2023"]
[White "Kozak, Adam"]
[Black "Kim, Sergey"]
[WhiteFideId "753246"]
[BlackFideId "13700570"]
[WhiteElo "2469"]
[BlackElo "2619"]
[Result "1-0"]
[Round "02"]
[TimeControl "180+2"]
[Date "2023.03.28"]
[WhiteClock "0:01:19"]
[BlackClock "0:01:05"]

1. e4 {[%clk 0:02:37]}  e5 {[%clk 0:02:57]} 2. g3 {[%clk 0:02:37]}  Nc6 {[%clk 0:02:54]} 3. Bg2 {[%clk 0:02:37]}  g6 {[%clk 0:02:54]} 4. c4 {[%clk 0:02:37]}  Bg7 {[%clk 0:02:54]} 5. Nc3 {[%clk 0:02:37]}  d6 {[%clk 0:02:54]} 6. d3 {[%clk 0:02:38]}  Nge7 {[%clk 0:02:54]} 7. Nge2 {[%clk 0:02:39]}  O-O {[%clk 0:02:54]} 8. O-O {[%clk 0:02:40]}  f5 {[%clk 0:02:54]} 9. f4 {[%clk 0:02:40]}  Be6 {[%clk 0:02:53]} 10. Be3 {[%clk 0:02:40]}  Qd7 {[%clk 0:02:53]} 11. Qd2 {[%clk 0:02:40]}  Rae8 {[%clk 0:02:51]} 12. b3 {[%clk 0:02:40]}  a6 {[%clk 0:02:50]} 13. Rae1 {[%clk 0:02:39]}  Nd4 {[%clk 0:02:48]} 14. Nd5 {[%clk 0:02:39]}  c5 {[%clk 0:02:46]} 15. Nxd4 {[%clk 0:02:37]}  exd4 {[%clk 0:02:41]} 16. Bf2 {[%clk 0:02:37]}  Nxd5 {[%clk 0:02:30]} 17. cxd5 {[%clk 0:02:37]}  Bf7 {[%clk 0:02:31]} 18. b4 {[%clk 0:02:24]}  b6 {[%clk 0:02:16]} 19. bxc5 {[%clk 0:02:16]}  bxc5 {[%clk 0:02:12]} 20. g4 {[%clk 0:02:16]}  fxe4 {[%clk 0:02:01]} 21. dxe4 {[%clk 0:02:13]}  Qxg4 {[%clk 0:02:00]} 22. Bg3 {[%clk 0:02:12]}  c4 {[%clk 0:01:56]} 23. e5 {[%clk 0:02:09]}  dxe5 {[%clk 0:01:35]} 24. fxe5 {[%clk 0:02:10]}  c3 {[%clk 0:01:26]} 25. Qd3 {[%clk 0:02:09]}  Re7 {[%clk 0:01:18]} 26. Rf4 {[%clk 0:01:56]}  Qc8 {[%clk 0:01:17]} 27. e6 {[%clk 0:01:55]}  Be8 {[%clk 0:01:13]} 28. Rxf8+ {[%clk 0:01:45]}  Bxf8 {[%clk 0:01:12]} 29. Qxd4 {[%clk 0:01:20]}  Rxe6 {[%clk 0:01:06]} 30. Rxe6 {[%clk 0:01:20]}  Bc5 {[%clk 0:01:06]} 31. Rxe8+ {[%clk 0:01:19]}  Qxe8 {[%clk 0:01:05]} 32. Qxc5 {[%clk 0:01:19]} 1-0


[Site "https://www.chess.com"]

[Event "Titled Tuesday Blitz March 28 Early 2023"]
[White "Demin, Vladimir"]
[Black "Svane, Frederik"]
[WhiteFideId "4167457"]
[BlackFideId "12923044"]
[WhiteElo "2607"]
[BlackElo "2502"]
[Result "0-1"]
[Round "02"]
[TimeControl "180+2"]
[Date "2023.03.28"]
[WhiteClock "0:00:59"]
[BlackClock "0:01:58"]

1. e4 {[%clk 0:03:00]}  c5 {[%clk 0:02:59]} 2. Nf3 {[%clk 0:03:00]}  d6 {[%clk 0:02:59]} 3. d4 {[%clk 0:03:00]}  cxd4 {[%clk 0:03:00]} 4. Qxd4 {[%clk 0:03:01]}  Nc6 {[%clk 0:02:59]} 5. Bb5 {[%clk 0:03:01]}  Bd7 {[%clk 0:02:59]} 6. Bxc6 {[%clk 0:03:00]}  Bxc6 {[%clk 0:03:00]} 7. Nc3 {[%clk 0:03:00]}  Nf6 {[%clk 0:02:59]} 8. Bg5 {[%clk 0:03:00]}  e6 {[%clk 0:02:58]} 9. O-O-O {[%clk 0:03:00]}  Be7 {[%clk 0:02:56]} 10. Qd3 {[%clk 0:03:00]}  Qa5 {[%clk 0:02:53]} 11. Kb1 {[%clk 0:02:59]}  O-O {[%clk 0:02:50]} 12. Bc1 {[%clk 0:02:57]}  Rfd8 {[%clk 0:02:44]} 13. Nd4 {[%clk 0:02:56]}  d5 {[%clk 0:02:35]} 14. e5 {[%clk 0:02:45]}  Nd7 {[%clk 0:02:36]} 15. f4 {[%clk 0:02:45]}  Rac8 {[%clk 0:02:26]} 16. g4 {[%clk 0:02:40]}  Nc5 {[%clk 0:02:26]} 17. Qg3 {[%clk 0:02:17]}  b5 {[%clk 0:02:24]} 18. Nb3 {[%clk 0:02:09]}  Nxb3 {[%clk 0:02:22]} 19. axb3 {[%clk 0:02:10]}  b4 {[%clk 0:02:21]} 20. Ne2 {[%clk 0:02:09]}  Rb8 {[%clk 0:02:17]} 21. Be3 {[%clk 0:01:55]}  d4 {[%clk 0:02:17]} 22. Bxd4 {[%clk 0:01:39]}  Bxh1 {[%clk 0:02:16]} 23. Rxh1 {[%clk 0:01:40]}  Bc5 {[%clk 0:02:12]} 24. Rd1 {[%clk 0:01:33]}  Rd5 {[%clk 0:02:05]} 25. Rd3 {[%clk 0:01:13]}  Rbd8 {[%clk 0:02:01]} 26. Bxc5 {[%clk 0:01:06]}  Qxc5 {[%clk 0:02:02]} 27. f5 {[%clk 0:01:02]}  Rxd3 {[%clk 0:01:57]} 28. cxd3 {[%clk 0:01:03]}  Qd5 {[%clk 0:01:58]} 29. d4 {[%clk 0:00:59]}  Qe4+ {[%clk 0:01:58]} 0-1


[Site "https://www.chess.com"]

[Event "Titled Tuesday Blitz March 28 Early 2023"]
[White "Zhigalko, Sergei"]
[Black "Priyanka Nutakki"]
[WhiteFideId "13502956"]
[BlackFideId "25049615"]
[WhiteElo "2626"]
[BlackElo "2256"]
[Result "1/2-1/2"]
[Round "02"]
[TimeControl "180+2"]
[Date "2023.03.28"]
[WhiteClock "0:00:05"]
[BlackClock "0:00:11"]

1. e4 {[%clk 0:03:00]}  e6 {[%clk 0:02:58]} 2. d4 {[%clk 0:03:01]}  d5 {[%clk 0:02:58]} 3. e5 {[%clk 0:03:01]}  c5 {[%clk 0:02:58]} 4. c3 {[%clk 0:03:01]}  Qb6 {[%clk 0:02:58]} 5. Nf3 {[%clk 0:03:01]}  Bd7 {[%clk 0:02:58]} 6. Be2 {[%clk 0:03:01]}  Bb5 {[%clk 0:02:58]} 7. Bxb5+ {[%clk 0:03:01]}  Qxb5 {[%clk 0:02:59]} 8. a4 {[%clk 0:03:02]}  Qa6 {[%clk 0:02:58]} 9. dxc5 {[%clk 0:02:59]}  Bxc5 {[%clk 0:02:58]} 10. b4 {[%clk 0:02:59]}  Be7 {[%clk 0:02:53]} 11. Na3 {[%clk 0:02:59]}  Nd7 {[%clk 0:02:46]} 12. Nb5 {[%clk 0:02:58]}  Rc8 {[%clk 0:02:43]} 13. O-O {[%clk 0:02:57]}  Nh6 {[%clk 0:02:42]} 14. Bxh6 {[%clk 0:02:55]}  gxh6 {[%clk 0:02:43]} 15. Qd2 {[%clk 0:02:55]}  Qb6 {[%clk 0:02:35]} 16. Qxh6 {[%clk 0:02:34]}  a6 {[%clk 0:02:35]} 17. Qg7 {[%clk 0:02:32]}  Rf8 {[%clk 0:02:32]} 18. Nd6+ {[%clk 0:02:13]}  Bxd6 {[%clk 0:02:29]} 19. exd6 {[%clk 0:02:14]}  Qxd6 {[%clk 0:02:29]} 20. Rfe1 {[%clk 0:02:14]}  Qf4 {[%clk 0:02:10]} 21. Nd4 {[%clk 0:01:30]}  Qf6 {[%clk 0:02:00]} 22. Qg4 {[%clk 0:01:09]}  Rc4 {[%clk 0:01:18]} 23. Qg3 {[%clk 0:00:48]}  Ke7 {[%clk 0:01:01]} 24. Rad1 {[%clk 0:00:48]}  h5 {[%clk 0:00:52]} 25. h4 {[%clk 0:00:47]}  Rcc8 {[%clk 0:00:41]} 26. Qd3 {[%clk 0:00:26]}  Ne5 {[%clk 0:00:35]} 27. Qe2 {[%clk 0:00:21]}  Ng6 {[%clk 0:00:19]} 28. Qxh5 {[%clk 0:00:19]}  Rxc3 {[%clk 0:00:19]} 29. g3 {[%clk 0:00:13]}  Kd7 {[%clk 0:00:15]} 30. Qh6 {[%clk 0:00:10]}  Rh8 {[%clk 0:00:15]} 31. Qd2 {[%clk 0:00:08]}  Rc4 {[%clk 0:00:15]} 32. Qg5 {[%clk 0:00:03]}  Qxg5 {[%clk 0:00:11]} 33. hxg5 {[%clk 0:00:04]}  Rxb4 {[%clk 0:00:11]} 34. a5 {[%clk 0:00:05]}  Ra4 {[%clk 0:00:11]} 35. Nf3 {[%clk 0:00:03]}  Rxa5 {[%clk 0:00:10]} 36. Kg2 {[%clk 0:00:04]}  Kd6 {[%clk 0:00:11]} 37. Nd2 {[%clk 0:00:04]}  Ke7 {[%clk 0:00:09]} 38. Rb1 {[%clk 0:00:03]}  Rb5 {[%clk 0:00:09]} 39. Rxb5 {[%clk 0:00:04]}  axb5 {[%clk 0:00:10]} 40. Rb1 {[%clk 0:00:04]}  Rb8 {[%clk 0:00:09]} 41. Rxb5 {[%clk 0:00:05]}  Ne5 {[%clk 0:00:10]} 42. f4 {[%clk 0:00:03]}  Nc6 {[%clk 0:00:09]} 43. Nf3 {[%clk 0:00:03]}  b6 {[%clk 0:00:08]} 44. g4 {[%clk 0:00:03]}  Kd6 {[%clk 0:00:08]} 45. Kg3 {[%clk 0:00:03]}  Na7 {[%clk 0:00:08]} 46. Rb1 {[%clk 0:00:03]}  b5 {[%clk 0:00:09]} 47. f5 {[%clk 0:00:03]}  Nc6 {[%clk 0:00:08]} 48. g6 {[%clk 0:00:03]}  fxg6 {[%clk 0:00:07]} 49. fxg6 {[%clk 0:00:04]}  b4 {[%clk 0:00:08]} 50. Ng5 {[%clk 0:00:02]}  Rg8 {[%clk 0:00:08]} 51. Nf7+ {[%clk 0:00:02]}  Ke7 {[%clk 0:00:08]} 52. Rc1 {[%clk 0:00:02]}  Rxg6 {[%clk 0:00:07]} 53. Rxc6 {[%clk 0:00:02]}  Kxf7 {[%clk 0:00:08]} 54. Rb6 {[%clk 0:00:03]}  Kf6 {[%clk 0:00:07]} 55. Rxb4 {[%clk 0:00:03]}  Rg8 {[%clk 0:00:08]} 56. Kf3 {[%clk 0:00:03]}  Rc8 {[%clk 0:00:08]} 57. Rb3 {[%clk 0:00:04]}  Rc4 {[%clk 0:00:08]} 58. Re3 {[%clk 0:00:03]}  e5 {[%clk 0:00:08]} 59. Ra3 {[%clk 0:00:03]}  Kg5 {[%clk 0:00:07]} 60. Ra5 {[%clk 0:00:03]}  Rc3+ {[%clk 0:00:08]} 61. Ke2 {[%clk 0:00:03]}  Kxg4 {[%clk 0:00:07]} 62. Rxd5 {[%clk 0:00:03]}  Kf4 {[%clk 0:00:08]} 63. Ra5 {[%clk 0:00:03]}  Rb3 {[%clk 0:00:08]} 64. Ra4+ {[%clk 0:00:03]}  e4 {[%clk 0:00:09]} 65. Ra2 {[%clk 0:00:03]}  Rh3 {[%clk 0:00:08]} 66. Kf1 {[%clk 0:00:03]}  Rh1+ {[%clk 0:00:08]} 67. Kg2 {[%clk 0:00:03]}  Rd1 {[%clk 0:00:09]} 68. Kf2 {[%clk 0:00:03]}  e3+ {[%clk 0:00:08]} 69. Ke2 {[%clk 0:00:03]}  Rd4 {[%clk 0:00:09]} 70. Ra8 {[%clk 0:00:03]}  Rb4 {[%clk 0:00:08]} 71. Rf8+ {[%clk 0:00:02]}  Ke4 {[%clk 0:00:09]} 72. Re8+ {[%clk 0:00:03]}  Kd4 {[%clk 0:00:10]} 73. Rd8+ {[%clk 0:00:04]}  Ke4 {[%clk 0:00:10]} 74. Re8+ {[%clk 0:00:04]}  Kd4 {[%clk 0:00:11]} 75. Rd8+ {[%clk 0:00:04]}  Ke4 {[%clk 0:00:11]} 76. Re8+ {[%clk 0:00:05]} 1/2-1/2


[Site "https://www.chess.com"]

[Event "Titled Tuesday Blitz March 28 Early 2023"]
[White "Rastbod, Ali"]
[Black "Ibarra Jerez, Jose Carlos"]
[WhiteFideId "12567477"]
[BlackFideId "2226332"]
[WhiteElo "2211"]
[BlackElo "2638"]
[Result "0-1"]
[Round "02"]
[TimeControl "180+2"]
[Date "2023.03.28"]
[WhiteClock "0:00:05"]
[BlackClock "0:00:33"]

1. d4 {[%clk 0:02:57]}  Nf6 {[%clk 0:02:59]} 2. Nf3 {[%clk 0:02:55]}  g6 {[%clk 0:02:59]} 3. g3 {[%clk 0:02:55]}  d6 {[%clk 0:02:59]} 4. Bg2 {[%clk 0:02:55]}  Bg7 {[%clk 0:03:00]} 5. O-O {[%clk 0:02:56]}  O-O {[%clk 0:03:01]} 6. c4 {[%clk 0:02:57]}  Bf5 {[%clk 0:03:00]} 7. Nh4 {[%clk 0:02:42]}  Be4 {[%clk 0:03:00]} 8. f3 {[%clk 0:02:36]}  Bxb1 {[%clk 0:02:57]} 9. Rxb1 {[%clk 0:02:37]}  d5 {[%clk 0:02:58]} 10. b3 {[%clk 0:02:26]}  Nc6 {[%clk 0:02:50]} 11. Bb2 {[%clk 0:02:20]}  e6 {[%clk 0:02:50]} 12. Qd2 {[%clk 0:02:04]}  dxc4 {[%clk 0:02:26]} 13. bxc4 {[%clk 0:02:05]}  Ne8 {[%clk 0:02:27]} 14. d5 {[%clk 0:01:55]}  g5 {[%clk 0:02:26]} 15. Bxg7 {[%clk 0:01:45]}  Nxg7 {[%clk 0:02:24]} 16. Qc3 {[%clk 0:00:44]}  exd5 {[%clk 0:02:09]} 17. cxd5 {[%clk 0:00:44]}  Ne7 {[%clk 0:02:08]} 18. f4 {[%clk 0:00:35]}  gxh4 {[%clk 0:02:07]} 19. Rxb7 {[%clk 0:00:33]}  hxg3 {[%clk 0:02:06]} 20. hxg3 {[%clk 0:00:31]}  Nxd5 {[%clk 0:02:04]} 21. Qc5 {[%clk 0:00:27]}  c6 {[%clk 0:01:53]} 22. Qxc6 {[%clk 0:00:26]}  Ne3 {[%clk 0:01:52]} 23. Rd7 {[%clk 0:00:17]}  Qa5 {[%clk 0:01:38]} 24. Qc7 {[%clk 0:00:16]}  Qxc7 {[%clk 0:01:34]} 25. Rxc7 {[%clk 0:00:17]}  Nxf1 {[%clk 0:01:21]} 26. Bxa8 {[%clk 0:00:16]}  Nxg3 {[%clk 0:01:09]} 27. Bf3 {[%clk 0:00:14]}  Ne6 {[%clk 0:01:00]} 28. Rxa7 {[%clk 0:00:11]}  Nxf4 {[%clk 0:01:00]} 29. Kf2 {[%clk 0:00:11]}  Nf5 {[%clk 0:00:55]} 30. a4 {[%clk 0:00:10]}  Rb8 {[%clk 0:00:45]} 31. a5 {[%clk 0:00:09]}  Rb2 {[%clk 0:00:42]} 32. a6 {[%clk 0:00:07]}  Ra2 {[%clk 0:00:35]} 33. Ra8+ {[%clk 0:00:05]}  Kg7 {[%clk 0:00:35]} 34. Bd5 {[%clk 0:00:05]}  Nxd5 {[%clk 0:00:33]} 0-1


[Site "https://www.chess.com"]

[Event "Titled Tuesday Blitz March 28 Early 2023"]
[White "Ider, Borya"]
[Black "Domingo Nunez, Alejandro"]
[WhiteFideId "4901134"]
[BlackFideId "22245561"]
[WhiteElo "2512"]
[BlackElo "2230"]
[Result "0-1"]
[Round "02"]
[TimeControl "180+2"]
[Date "2023.03.28"]
[WhiteClock "0:00:23"]
[BlackClock "0:00:16"]

1. Nf3 {[%clk 0:02:58]}  g6 {[%clk 0:02:59]} 2. d4 {[%clk 0:02:56]}  Bg7 {[%clk 0:02:59]} 3. Bf4 {[%clk 0:02:57]}  Nf6 {[%clk 0:02:56]} 4. e3 {[%clk 0:02:57]}  b6 {[%clk 0:02:56]} 5. Be2 {[%clk 0:02:56]}  Bb7 {[%clk 0:02:57]} 6. c4 {[%clk 0:02:51]}  O-O {[%clk 0:02:57]} 7. Nc3 {[%clk 0:02:51]}  d6 {[%clk 0:02:58]} 8. h3 {[%clk 0:02:51]}  Nbd7 {[%clk 0:02:58]} 9. Bh2 {[%clk 0:02:50]}  Ne4 {[%clk 0:02:56]} 10. O-O {[%clk 0:02:35]}  Nxc3 {[%clk 0:02:53]} 11. bxc3 {[%clk 0:02:36]}  e5 {[%clk 0:02:53]} 12. Rb1 {[%clk 0:02:27]}  Qe7 {[%clk 0:02:52]} 13. Qc2 {[%clk 0:02:16]}  f5 {[%clk 0:02:49]} 14. a4 {[%clk 0:02:15]}  Be4 {[%clk 0:02:46]} 15. Qa2 {[%clk 0:02:11]}  Bxb1 {[%clk 0:02:45]} 16. Rxb1 {[%clk 0:02:12]}  Kh8 {[%clk 0:02:25]} 17. a5 {[%clk 0:02:11]}  g5 {[%clk 0:02:17]} 18. Ne1 {[%clk 0:02:04]}  e4 {[%clk 0:02:17]} 19. a6 {[%clk 0:02:00]}  f4 {[%clk 0:02:07]} 20. Nc2 {[%clk 0:01:53]}  f3 {[%clk 0:02:06]} 21. Bf1 {[%clk 0:01:49]}  Nf6 {[%clk 0:01:51]} 22. Qa4 {[%clk 0:01:46]}  g4 {[%clk 0:01:51]} 23. Qc6 {[%clk 0:01:35]}  gxh3 {[%clk 0:01:48]} 24. gxf3 {[%clk 0:01:33]}  exf3 {[%clk 0:01:47]} 25. Bd3 {[%clk 0:01:17]}  Ng4 {[%clk 0:01:40]} 26. Bg3 {[%clk 0:01:16]}  h2+ {[%clk 0:01:27]} 27. Kh1 {[%clk 0:01:16]}  Qg5 {[%clk 0:01:20]} 28. Ne1 {[%clk 0:00:48]}  Nxe3 {[%clk 0:00:26]} 29. Nxf3 {[%clk 0:00:48]}  Qg4 {[%clk 0:00:25]} 30. Nxh2 {[%clk 0:00:44]}  Qh3 {[%clk 0:00:25]} 31. Qe4 {[%clk 0:00:44]}  Nf5 {[%clk 0:00:25]} 32. Bf4 {[%clk 0:00:40]}  Rae8 {[%clk 0:00:25]} 33. Qc6 {[%clk 0:00:34]}  Ne7 {[%clk 0:00:19]} 34. Qb5 {[%clk 0:00:26]}  Qxd3 {[%clk 0:00:19]} 35. Rg1 {[%clk 0:00:24]}  Qe4+ {[%clk 0:00:16]} 36. f3 {[%clk 0:00:25]}  Qxf4 {[%clk 0:00:16]} 37. Qd7 {[%clk 0:00:25]}  Ng6 {[%clk 0:00:16]} 38. Qxc7 {[%clk 0:00:25]}  Re2 {[%clk 0:00:16]} 39. Rg2 {[%clk 0:00:23]}  Rxg2 {[%clk 0:00:16]} 40. Kxg2 {[%clk 0:00:24]}  Re8 {[%clk 0:00:16]} 41. Nf1 {[%clk 0:00:23]}  Re2+ {[%clk 0:00:16]} 42. Kg1 {[%clk 0:00:24]}  Qg5+ {[%clk 0:00:15]} 43. Kh1 {[%clk 0:00:23]}  Qg2# {[%clk 0:00:16]} 0-1


[Site "https://www.chess.com"]

[Event "Titled Tuesday Blitz March 28 Early 2023"]
[White "Jia, Haoxiang"]
[Black "Deac, Bogdan-Daniel"]
[WhiteFideId "8602999"]
[BlackFideId "1226380"]
[WhiteElo "2593"]
[BlackElo "2649"]
[Result "0-1"]
[Round "02"]
[TimeControl "180+2"]
[Date "2023.03.28"]
[WhiteClock "0:01:38"]
[BlackClock "0:00:51"]

1. Nf3 {[%clk 0:03:00]}  b6 {[%clk 0:02:58]} 2. g3 {[%clk 0:03:00]}  Bb7 {[%clk 0:02:58]} 3. Bg2 {[%clk 0:03:01]}  g6 {[%clk 0:02:58]} 4. O-O {[%clk 0:03:02]}  Bg7 {[%clk 0:02:59]} 5. c4 {[%clk 0:03:02]}  c5 {[%clk 0:02:59]} 6. d4 {[%clk 0:03:01]}  cxd4 {[%clk 0:02:51]} 7. Nxd4 {[%clk 0:03:02]}  Bxg2 {[%clk 0:02:51]} 8. Kxg2 {[%clk 0:03:03]}  Nf6 {[%clk 0:02:51]} 9. Nc3 {[%clk 0:03:02]}  Qc8 {[%clk 0:02:51]} 10. Qd3 {[%clk 0:03:01]}  d6 {[%clk 0:02:29]} 11. Bg5 {[%clk 0:03:00]}  Nbd7 {[%clk 0:02:28]} 12. b3 {[%clk 0:03:00]}  h6 {[%clk 0:02:23]} 13. Bxf6 {[%clk 0:02:56]}  Nxf6 {[%clk 0:02:24]} 14. Rac1 {[%clk 0:02:56]}  a6 {[%clk 0:02:23]} 15. Rfd1 {[%clk 0:02:55]}  O-O {[%clk 0:02:14]} 16. Nd5 {[%clk 0:02:48]}  Qb7 {[%clk 0:02:10]} 17. e4 {[%clk 0:02:47]}  e6 {[%clk 0:02:02]} 18. Nxf6+ {[%clk 0:02:46]}  Bxf6 {[%clk 0:02:03]} 19. f3 {[%clk 0:02:47]}  Rfd8 {[%clk 0:02:00]} 20. h4 {[%clk 0:02:46]}  h5 {[%clk 0:01:47]} 21. Nc2 {[%clk 0:02:40]}  b5 {[%clk 0:01:45]} 22. Ne3 {[%clk 0:02:34]}  Rac8 {[%clk 0:01:31]} 23. Rc2 {[%clk 0:02:28]}  bxc4 {[%clk 0:01:23]} 24. Rxc4 {[%clk 0:02:26]}  Rxc4 {[%clk 0:01:16]} 25. Nxc4 {[%clk 0:02:15]}  d5 {[%clk 0:01:16]} 26. exd5 {[%clk 0:02:15]}  exd5 {[%clk 0:01:17]} 27. Ne3 {[%clk 0:02:12]}  d4 {[%clk 0:01:17]} 28. Nc4 {[%clk 0:02:12]}  Qb4 {[%clk 0:01:16]} 29. Qd2 {[%clk 0:02:10]}  Qb5 {[%clk 0:00:59]} 30. Re1 {[%clk 0:02:08]}  d3 {[%clk 0:00:52]} 31. Qa5 {[%clk 0:01:37]}  Qxa5 {[%clk 0:00:51]} 32. Nxa5 {[%clk 0:01:38]}  Bc3 {[%clk 0:00:51]} 0-1


[Site "https://www.chess.com"]

[Event "Titled Tuesday Blitz March 28 Early 2023"]
[White "Alex_Sahakyan2006"]
[Black "Movahed, Sina"]
[BlackFideId "42520835"]
[WhiteElo "2591"]
[BlackElo "2225"]
[Result "0-1"]
[Round "02"]
[TimeControl "180+2"]
[Date "2023.03.28"]
[WhiteClock "0:00:01"]
[BlackClock "0:00:46"]

1. Nf3 {[%clk 0:03:00]}  Nf6 {[%clk 0:02:59]} 2. g3 {[%clk 0:03:00]}  g6 {[%clk 0:02:59]} 3. Bg2 {[%clk 0:03:01]}  Bg7 {[%clk 0:03:00]} 4. O-O {[%clk 0:03:01]}  O-O {[%clk 0:03:01]} 5. d4 {[%clk 0:03:01]}  d6 {[%clk 0:03:01]} 6. Nc3 {[%clk 0:03:02]}  Nbd7 {[%clk 0:02:58]} 7. e4 {[%clk 0:03:02]}  c5 {[%clk 0:02:57]} 8. e5 {[%clk 0:02:45]}  Ne8 {[%clk 0:02:43]} 9. dxc5 {[%clk 0:02:30]}  Nxc5 {[%clk 0:02:32]} 10. Be3 {[%clk 0:02:26]}  Nd7 {[%clk 0:02:25]} 11. exd6 {[%clk 0:02:19]}  Nxd6 {[%clk 0:02:26]} 12. Qd3 {[%clk 0:02:12]}  Nb6 {[%clk 0:02:17]} 13. Bd4 {[%clk 0:01:40]}  Nf5 {[%clk 0:02:05]} 14. Rad1 {[%clk 0:01:34]}  Nxd4 {[%clk 0:02:03]} 15. Nxd4 {[%clk 0:01:35]}  a6 {[%clk 0:02:00]} 16. h3 {[%clk 0:01:31]}  Qc7 {[%clk 0:01:59]} 17. a4 {[%clk 0:01:13]}  e6 {[%clk 0:01:24]} 18. a5 {[%clk 0:01:10]}  Nc4 {[%clk 0:01:23]} 19. Nde2 {[%clk 0:00:51]}  Nxb2 {[%clk 0:01:18]} 20. Qd6 {[%clk 0:00:51]}  Qc4 {[%clk 0:01:15]} 21. Rb1 {[%clk 0:00:12]}  Bxc3 {[%clk 0:01:10]} 22. Nxc3 {[%clk 0:00:13]}  Qxc3 {[%clk 0:01:11]} 23. Rfe1 {[%clk 0:00:13]}  Qxa5 {[%clk 0:01:07]} 24. Re5 {[%clk 0:00:12]}  Nc4 {[%clk 0:01:06]} 25. Rxa5 {[%clk 0:00:10]}  Nxd6 {[%clk 0:01:05]} 26. Rb4 {[%clk 0:00:08]}  Rd8 {[%clk 0:01:01]} 27. Kh2 {[%clk 0:00:04]}  Kf8 {[%clk 0:01:01]} 28. g4 {[%clk 0:00:04]}  h6 {[%clk 0:01:00]} 29. c4 {[%clk 0:00:04]}  Ke7 {[%clk 0:00:59]} 30. c5 {[%clk 0:00:05]}  Ne8 {[%clk 0:00:56]} 31. Rb6 {[%clk 0:00:04]}  Nc7 {[%clk 0:00:55]} 32. Kg3 {[%clk 0:00:03]}  Nd5 {[%clk 0:00:52]} 33. Rb3 {[%clk 0:00:03]}  Kd7 {[%clk 0:00:50]} 34. f4 {[%clk 0:00:02]}  Kc7 {[%clk 0:00:50]} 35. f5 {[%clk 0:00:02]}  gxf5 {[%clk 0:00:50]} 36. gxf5 {[%clk 0:00:03]}  Bd7 {[%clk 0:00:50]} 37. fxe6 {[%clk 0:00:02]}  fxe6 {[%clk 0:00:50]} 38. Kh4 {[%clk 0:00:03]}  Bc6 {[%clk 0:00:50]} 39. Rb2 {[%clk 0:00:02]}  Nf6 {[%clk 0:00:47]} 40. Bxc6 {[%clk 0:00:01]}  Rd4+ {[%clk 0:00:46]} 41. Kg3 {[%clk 0:00:01]}  bxc6 {[%clk 0:00:47]} 42. Ra3 {[%clk 0:00:01]}  a5 {[%clk 0:00:46]} 0-1


[Site "https://www.chess.com"]